[Event "4NCL Div 2 2024-25"]
[Site "England"]
[Date "2025.04.05"]
[Round "7.27"]
[White "Jones, Steven A"]
[Black "Zhang, Junyi"]
[Result "1/2-1/2"]
[Annotator "ChessBase"]
[ECO "B45"]
[WhiteElo "2175"]
[BlackElo "2123"]
[PlyCount "112"]
[EventDate "2024.11.23"]
[EventType "team-tourn"]
[EventCountry "ENG"]
[SourceTitle "playchess.com"]
[Source "ChessBase"]
[SourceQuality "1"]
[TimeControl "40/6000+30:3000+30"]

1. e4 {[%emt 0:19:27]} c5 {[%emt 0:11:02]} 2. Nf3 {[%emt 0:00:12]} e6 {[%emt 1:30:28]} 3. d4 {[%emt 0:00:10]} cxd4 {[%emt 0:00:00]} 4. Nxd4 {[%emt 0:00:06]} Nf6 {[%emt 0:00:00]} 5. Nc3 {[%emt 0:00:20]} Nc6 {[%emt 0:00:00]} 6. Be2 {[%emt 0:01:45]} Bb4 {[%emt 0:00:00]} 7. O-O {[%emt 0:00:11]} O-O {[%emt 0:00:00]} 8. Nxc6 {[%emt 0:00:25]} bxc6 {[%emt 0:00:00]} 9. e5 {[%emt 0:00:35]} Nd5 {[%emt 0:00:00]} 10. Ne4 {[%emt 0:00:02]} f5 {[%emt 0:00:00]} 11. Nd6 {[%emt 0:10:14]} Bxd6 {[%emt 0:00:00]} 12. exd6 {[%emt 0:00:08]} a5 {[%emt 0:00:00]} 13. c4 {[%emt 0:04:05]} Nf6 {[%emt 0:00:00]} 14. Be3 {[%emt 0:00:45]} Ba6 {[%emt 0:00:00]} 15. Qd4 {[%emt 0:07:21]} Qe8 {[%emt 0:00:00]} 16. f4 {[%emt 0:01:00]} Qb8 {[%emt 0:00:00]} 17. Bf3 {[%emt 0:15:49]} a4 {[%emt 0:00:00]} 18. Rab1 {[%emt 0:08:41]} Qb4 {[%emt 0:00:00]} 19. b3 {[%emt 0:02:44]} axb3 {[%emt 0:00:00]} 20. axb3 {[%emt 0:00:02]} Rfb8 {[%emt 0:00:00]} 21. h3 {[%emt 0:06:34]} Qa3 {[%emt 0:00:00]} 22. Bc1 {[%emt 0:03:16]} Qb4 {[%emt 0:01:43]} 23. Bd2 {[%emt 0:00:53]} Qb6 {[%emt 0:05:27]} 24. c5 {[%emt 0:01:38]} Qd8 {[%emt 0:01:50]} 25. Rfe1 {[%emt 0:00:26]} Qf8 {[%emt 0:00:54]} 26. Bc3 {[%emt 0:00:50]} Bb5 {[%emt 0:00:23]} 27. g4 {[%emt 0:01:37]} fxg4 {[%emt 0:00:23]} 28. hxg4 {[%emt 0:00:18]} Re8 {[%emt 0:01:05]} 29. Re5 {[%emt 0:01:04]} Ra2 {[%emt 0:01:06]} 30. Rbe1 {[%emt 0:00:52]} Qf7 {[%emt 0:00:33]} 31. f5 {[%emt 0:01:17]} h6 {[%emt 0:00:29]} 32. Bg2 {[%emt 0:03:48]} Raa8 {[%emt 0:00:33]} 33. fxe6 {[%emt 0:01:19]} Rxe6 {[%emt 0:00:19]} 34. Rxe6 {[%emt 0:00:45]} dxe6 {[%emt 0:00:01]} 35. Re3 {[%emt 0:03:43]} Ra2 {[%emt 0:00:30]} 36. Rf3 {[%emt 0:03:10]} Rc2 {[%emt 0:00:40]} 37. Rxf6 {[%emt 0:01:35]} Qxf6 {[%emt 0:00:52]} 38. Qxf6 {[%emt 0:01:40]} gxf6 {[%emt 0:00:02]} 39. Bxf6 {[%emt 0:00:16]} Rd2 {[%emt 0:00:22]} 40. g5 {[%emt 0:02:30]} hxg5 {[%emt 0:00:45]} 41. Bxg5 {[%emt 0:51:05]} Rd3 {[%emt 0:50:49]} 42. Be4 {[%emt 0:04:21]} Rd1+ {[%emt 0:00:02]} 43. Kf2 {[%emt 0:01:02]} Kg7 {[%emt 0:01:06]} 44. Bf3 {[%emt 0:00:42]} Rd3 {[%emt 0:00:23]} 45. Be2 {[%emt 0:02:06]} Rd5 {[%emt 0:00:42]} 46. Bxb5 {[%emt 0:01:03]} cxb5 {[%emt 0:00:10]} 47. b4 {[%emt 0:00:00]} Kf7 {[%emt 0:00:00]} 48. Bf4 {[%emt 0:00:00]} e5 {[%emt 0:00:00]} 49. Bg5 {[%emt 0:00:00]} Ke6 {[%emt 0:02:21]} 50. Bd8 {[%emt 0:00:00]} Rd4 {[%emt 0:00:00]} 51. Ba5 {[%emt 0:00:00]} Kd7 {[%emt 0:00:00]} 52. Ke3 {[%emt 0:00:00]} Kc6 {[%emt 0:01:30]} 53. Kf3 {[%emt 0:00:00]} Rd1 {[%emt 0:00:00]} 54. Ke2 {[%emt 0:00:00]} Rd4 {[%emt 0:00:00]} 55. Ke3 {[%emt 0:00:00]} Rh4 {[%emt 0:00:00]} 56. Kf3 {[%emt 0:00:00]} Rf4+ {[%emt 0:02:00]} 1/2-1/2

[Event "4NCL Div 2 2024-25"]
[Site "England"]
[Date "2025.04.05"]
[Round "7.28"]
[White "Waller, Dan"]
[Black "Saunders, Aron"]
[Result "0-1"]
[Annotator "NA"]
[ECO "B12"]
[WhiteElo "2099"]
[BlackElo "2106"]
[PlyCount "86"]
[EventDate "2024.11.23"]
[EventType "team-tourn"]
[EventCountry "ENG"]
[SourceTitle "playchess.com"]
[Source "ChessBase"]
[SourceQuality "1"]
[TimeControl "40/6000+30:3000+30"]

1. e4 {[%emt 0:10:03]} c6 {[%emt 0:10:04]} 2. d4 {[%emt 0:00:05]} d5 {[%emt 0:00:04]} 3. e5 {[%emt 0:00:03]} Bf5 {[%emt 0:00:05]} 4. h4 {[%emt 0:00:09]} h5 {[%emt 0:00:05]} 5. Bd3 {[%emt 0:00:03]} Bxd3 {[%emt 0:00:05]} 6. Qxd3 {[%emt 0:00:03]} Qa5+ {[%emt 0:00:09]} 7. Nd2 {[%emt 0:00:05]} e6 {[%emt 0:00:15]} 8. Ngf3 {[%emt 0:00:05]} Nh6 {[%emt 0:00:10]} 9. O-O {[%emt 0:00:06]} Nf5 {[%emt 0:00:09]} 10. Nb3 {[%emt 0:00:44]} Qb5 {[%emt 0:00:06]} 11. Qd1 {[%emt 0:00:06]} c5 {[%emt 0:01:06]} 12. dxc5 {[%emt 0:04:55]} Bxc5 {[%emt 0:00:05]} 13. a4 {[%emt 0:00:12]} Qb6 {[%emt 0:00:27]} 14. a5 {[%emt 0:00:22]} Qb5 {[%emt 0:01:44]} 15. Nxc5 {[%emt 0:00:18]} Qxc5 {[%emt 0:00:05]} 16. Ra4 {[%emt 0:04:48]} Nc6 {[%emt 0:02:25]} 17. c3 {[%emt 0:00:41]} O-O {[%emt 0:03:58]} 18. Re1 {[%emt 0:07:40]} b5 {[%emt 0:05:44]} 19. Rf4 {[%emt 0:11:22]} Rad8 {[%emt 0:10:44]} 20. Ng5 {[%emt 0:03:56]} g6 {[%emt 0:03:08]} 21. g4 {[%emt 0:07:00]} hxg4 {[%emt 0:05:11]} 22. Qxg4 {[%emt 0:00:12]} Nce7 {[%emt 0:18:33]} 23. h5 {[%emt 0:13:08]} Kg7 {[%emt 0:03:23]} 24. Kg2 {[%emt 0:00:53]} Rh8 {[%emt 0:00:48]} 25. Rh1 {[%emt 0:01:38]} d4 {[%emt 0:02:37]} 26. h6+ {[%emt 0:08:51]} Rxh6 {[%emt 0:06:25]} 27. Rxh6 {[%emt 0:00:40]} Qd5+ {[%emt 0:00:06]} 28. Nf3 {[%emt 0:02:56]} Nxh6 {[%emt 0:00:04]} 29. Qg5 {[%emt 0:01:38]} Nhf5 {[%emt 0:04:19]} 30. Qf6+ {[%emt 0:05:48]} Kg8 {[%emt 0:00:47]} 31. cxd4 {[%emt 0:00:16]} Qa8 {[%emt 0:02:33]} 32. Qg5 {[%emt 0:13:29]} Rxd4 {[%emt 0:01:06]} 33. Kh2 {[%emt 0:00:46]} Rd3 {[%emt 0:01:44]} 34. Qg4 {[%emt 0:03:21]} Qd5 {[%emt 0:02:26]} 35. Re4 {[%emt 0:00:30]} Qc5 {[%emt 0:01:38]} 36. Be3 {[%emt 0:02:04]} Nxe3 {[%emt 0:00:36]} 37. fxe3 {[%emt 0:00:06]} Rxe3 {[%emt 0:01:08]} 38. Rd4 {[%emt 0:00:51]} Qc2+ {[%emt 0:01:06]} 39. Kg3 {[%emt 0:00:23]} Nf5+ {[%emt 0:00:09]} 40. Kf4 {[%emt 0:00:28]} Nxd4 {[%emt 0:01:26]} 41. Kxe3 {[%emt 0:50:28]} Nf5+ {[%emt 0:50:38]} 42. Kf4 {[%emt 0:00:06]} Qc1+ {[%emt 0:00:03]} 43. Ke4 {[%emt 0:00:07]} Qe3# {[%emt 0:00:42]} 0-1

[Event "4NCL Div 2 2024-25"]
[Site "England"]
[Date "2025.04.05"]
[Round "7.29"]
[White "Bullen, Alex"]
[Black "Lishoy Gengis Paratazham, Dildarav"]
[Result "1/2-1/2"]
[Annotator "ChessBase"]
[ECO "D00"]
[WhiteElo "2160"]
[BlackElo "2045"]
[PlyCount "71"]
[EventDate "2024.11.23"]
[EventType "team-tourn"]
[EventCountry "ENG"]
[SourceTitle "playchess.com"]
[Source "ChessBase"]
[SourceQuality "1"]
[TimeControl "40/6000+30:3000+30"]

1. d4 {[%emt 0:10:04]} Nf6 {[%emt 0:10:05]} 2. Nc3 {[%emt 0:00:12]} d5 {[%emt 0:00:38]} 3. Bf4 {[%emt 0:00:10]} e6 {[%emt 0:01:35]} 4. Nb5 {[%emt 0:00:23]} Na6 {[%emt 0:00:38]} 5. e3 {[%emt 0:00:10]} c6 {[%emt 0:05:05]} 6. Nc3 {[%emt 0:01:00]} Bd6 {[%emt 0:01:33]} 7. Bxd6 {[%emt 0:01:31]} Qxd6 {[%emt 0:00:08]} 8. Nf3 {[%emt 0:00:32]} Nc7 {[%emt 0:02:38]} 9. Bd3 {[%emt 0:02:51]} c5 {[%emt 0:10:49]} 10. O-O {[%emt 0:16:12]} O-O {[%emt 0:03:29]} 11. e4 {[%emt 0:01:56]} dxe4 {[%emt 0:05:26]} 12. Nxe4 {[%emt 0:01:46]} Nxe4 {[%emt 0:01:49]} 13. Bxe4 {[%emt 0:00:17]} f5 {[%emt 0:00:56]} 14. Bd3 {[%emt 0:01:25]} cxd4 {[%emt 0:00:56]} 15. Re1 {[%emt 0:01:04]} Rd8 {[%emt 0:14:05]} 16. Bc4 {[%emt 0:02:21]} b5 {[%emt 0:05:17]} 17. Bb3 {[%emt 0:00:28]} Bb7 {[%emt 0:04:50]} 18. Ng5 {[%emt 0:02:12]} Qc6 {[%emt 0:03:30]} 19. f3 {[%emt 0:00:17]} Bc8 {[%emt 0:01:21]} 20. Qd3 {[%emt 0:04:58]} h6 {[%emt 0:02:15]} 21. Nh3 {[%emt 0:00:28]} a5 {[%emt 0:02:39]} 22. a4 {[%emt 0:01:37]} bxa4 {[%emt 0:08:43]} 23. Rxa4 {[%emt 0:05:52]} Ba6 {[%emt 0:04:18]} 24. Qd2 {[%emt 0:05:14]} d3 {[%emt 0:02:04]} 25. Nf4 {[%emt 0:10:49]} dxc2 {[%emt 0:03:49]} 26. Qxc2 {[%emt 0:01:13]} Qxc2 {[%emt 0:00:27]} 27. Bxc2 {[%emt 0:00:04]} Rd2 {[%emt 0:04:11]} 28. Bb3 {[%emt 0:04:52]} Rxb2 {[%emt 0:01:40]} 29. Nxe6 {[%emt 0:03:33]} Rxb3 {[%emt 0:01:01]} 30. Nxc7 {[%emt 0:00:08]} Ra7 {[%emt 0:00:03]} 31. Rxa5 {[%emt 0:08:39]} Rxc7 {[%emt 0:00:05]} 32. Rxa6 {[%emt 0:00:11]} Rb2 {[%emt 0:00:29]} 33. Kh1 {[%emt 0:00:13]} Rcc2 {[%emt 0:00:26]} 34. Rg1 {[%emt 0:00:10]} Kf7 {[%emt 0:00:40]} 35. Rd6 {[%emt 0:00:16]} h5 {[%emt 0:01:56]} 36. Ra6 {[%emt 0:00:50]} 1/2-1/2

[Event "4NCL Div 2 2024-25"]
[Site "England"]
[Date "2025.04.05"]
[Round "7.30"]
[White "Handley, Michael R"]
[Black "Pilley, Jack"]
[Result "0-1"]
[Annotator "NA"]
[ECO "E11"]
[WhiteElo "1993"]
[BlackElo "1937"]
[PlyCount "80"]
[EventDate "2024.11.23"]
[EventType "team-tourn"]
[EventCountry "ENG"]
[SourceTitle "playchess.com"]
[Source "ChessBase"]
[SourceQuality "1"]
[TimeControl "40/6000+30:3000+30"]

1. d4 {[%emt 0:10:06]} Nf6 {[%emt 0:10:01]} 2. c4 {[%emt 0:00:06]} e6 {[%emt 0:00:04]} 3. Nf3 {[%emt 0:00:07]} d5 {[%emt 0:00:02]} 4. g3 {[%emt 0:00:12]} Bb4+ {[%emt 0:00:01]} 5. Bd2 {[%emt 0:00:06]} a5 {[%emt 0:00:02]} 6. Bg2 {[%emt 0:03:31]} O-O {[%emt 0:00:16]} 7. O-O {[%emt 0:00:51]} dxc4 {[%emt 0:00:05]} 8. Bg5 {[%emt 0:02:43]} b5 {[%emt 0:08:20]} 9. Ne5 {[%emt 0:03:27]} Ra6 {[%emt 0:04:41]} 10. a4 {[%emt 0:17:21]} c6 {[%emt 0:00:58]} 11. Nc3 {[%emt 0:03:46]} Qb6 {[%emt 0:22:47]} 12. Bxf6 {[%emt 0:21:29]} gxf6 {[%emt 0:00:19]} 13. Ng4 {[%emt 0:00:11]} Be7 {[%emt 0:03:12]} 14. e4 {[%emt 0:21:46]} Rd8 {[%emt 0:08:02]} 15. Qf3 {[%emt 0:00:48]} Nd7 {[%emt 0:03:05]} 16. Rad1 {[%emt 0:06:10]} Bf8 {[%emt 0:11:38]} 17. Nxf6+ {[%emt 0:04:00]} Nxf6 {[%emt 0:00:05]} 18. Qxf6 {[%emt 0:00:03]} Bg7 {[%emt 0:00:03]} 19. Qh4 {[%emt 0:00:11]} b4 {[%emt 0:16:46]} 20. Ne2 {[%emt 0:00:03]} Ra8 {[%emt 0:02:22]} 21. e5 {[%emt 0:01:55]} Ba6 {[%emt 0:00:38]} 22. Rfe1 {[%emt 0:02:06]} Rd7 {[%emt 0:04:03]} 23. Qe4 {[%emt 0:02:24]} Bb7 {[%emt 0:00:25]} 24. Qc2 {[%emt 0:00:32]} Ba6 {[%emt 0:00:04]} 25. Qe4 {[%emt 0:00:21]} Bb7 {[%emt 0:03:30]} 26. Qc2 {[%emt 0:00:46]} Rad8 {[%emt 0:00:23]} 27. Be4 {[%emt 0:03:48]} h6 {[%emt 0:01:12]} 28. Kg2 {[%emt 0:01:18]} c5 {[%emt 0:04:24]} 29. dxc5 {[%emt 0:00:04]} Bxe4+ {[%emt 0:00:45]} 30. Qxe4 {[%emt 0:00:08]} Qxc5 {[%emt 0:00:03]} 31. Rxd7 {[%emt 0:00:47]} Rxd7 {[%emt 0:00:01]} 32. Rc1 {[%emt 0:01:02]} Qxe5 {[%emt 0:00:20]} 33. Qxc4 {[%emt 0:02:23]} Rd2 {[%emt 0:01:41]} 34. Nf4 {[%emt 0:01:09]} Qd4 {[%emt 0:01:13]} 35. Qf1 {[%emt 0:01:26]} Rxb2 {[%emt 0:01:38]} 36. Rc8+ {[%emt 0:00:06]} Kh7 {[%emt 0:00:15]} 37. Rc7 {[%emt 0:00:20]} Qe4+ {[%emt 0:00:31]} 38. Kg1 {[%emt 0:00:01]} Rb1 {[%emt 0:00:14]} 39. Rc1 {[%emt 0:00:10]} Rxc1 {[%emt 0:00:11]} 40. Qxc1 {[%emt 0:00:01]} b3 {[%emt 0:00:12]} 0-1

[Event "4NCL Div 2 2024-25"]
[Site "England"]
[Date "2025.04.05"]
[Round "7.31"]
[White "Turner, Lewis A"]
[Black "Foo, Zhi Rong Benjamin"]
[Result "0-1"]
[Annotator "ChessBase"]
[ECO "C45"]
[WhiteElo "1984"]
[BlackElo "2177"]
[PlyCount "86"]
[EventDate "2024.11.23"]
[EventType "team-tourn"]
[EventCountry "ENG"]
[SourceTitle "playchess.com"]
[Source "ChessBase"]
[SourceQuality "1"]
[TimeControl "40/6000+30:3000+30"]

1. e4 {[%emt 0:22:23]} e5 {[%emt 0:10:05]} 2. Nf3 {[%emt 0:00:06]} Nc6 {[%emt 0:00:04]} 3. d4 {[%emt 0:00:10]} exd4 {[%emt 0:00:15]} 4. Nxd4 {[%emt 0:00:08]} Nf6 {[%emt 0:00:08]} 5. Nxc6 {[%emt 0:00:07]} bxc6 {[%emt 0:00:03]} 6. e5 {[%emt 0:00:08]} Qe7 {[%emt 0:00:04]} 7. Qe2 {[%emt 0:00:06]} Nd5 {[%emt 0:00:04]} 8. c4 {[%emt 0:00:09]} Ba6 {[%emt 0:00:08]} 9. b3 {[%emt 0:00:13]} Qh4 {[%emt 0:02:01]} 10. a3 {[%emt 0:06:21]} Nf4 {[%emt 0:00:54]} 11. Qe3 {[%emt 0:09:20]} Ne6 {[%emt 0:01:31]} 12. g3 {[%emt 0:11:38]} Qd4 {[%emt 0:01:49]} 13. Ra2 {[%emt 0:02:30]} Rb8 {[%emt 0:10:59]} 14. b4 {[%emt 0:04:00]} c5 {[%emt 0:01:27]} 15. b5 {[%emt 0:05:11]} Bb7 {[%emt 0:01:27]} 16. Rg1 {[%emt 0:00:12]} g5 {[%emt 0:06:19]} 17. Qe2 {[%emt 0:09:52]} Bg7 {[%emt 0:03:00]} 18. Bb2 {[%emt 0:00:35]} Qe4 {[%emt 0:00:07]} 19. Qxe4 {[%emt 0:02:51]} Bxe4 {[%emt 0:00:01]} 20. Nd2 {[%emt 0:01:18]} Ba8 {[%emt 0:04:43]} 21. Bg2 {[%emt 0:03:48]} O-O {[%emt 0:13:34]} 22. Bxa8 {[%emt 0:00:12]} Rxa8 {[%emt 0:00:01]} 23. Ne4 {[%emt 0:00:25]} Rfe8 {[%emt 0:01:07]} 24. Kf1 {[%emt 0:00:48]} g4 {[%emt 0:04:54]} 25. Kg2 {[%emt 0:01:03]} Nd4 {[%emt 0:03:53]} 26. Bxd4 {[%emt 0:01:17]} cxd4 {[%emt 0:00:02]} 27. Nf6+ {[%emt 0:00:07]} Bxf6 {[%emt 0:00:02]} 28. exf6 {[%emt 0:00:08]} c5 {[%emt 0:01:11]} 29. a4 {[%emt 0:02:18]} Re6 {[%emt 0:01:24]} 30. a5 {[%emt 0:00:28]} Rxf6 {[%emt 0:00:43]} 31. Re1 {[%emt 0:01:22]} Re6 {[%emt 0:01:28]} 32. Rxe6 {[%emt 0:00:37]} dxe6 {[%emt 0:00:37]} 33. Rb2 {[%emt 0:04:39]} Kf8 {[%emt 0:04:04]} 34. Re2 {[%emt 0:04:24]} Ke7 {[%emt 0:00:36]} 35. Re5 {[%emt 0:01:35]} Kd6 {[%emt 0:00:26]} 36. Rh5 {[%emt 0:01:22]} f5 {[%emt 0:14:04]} 37. Rxh7 {[%emt 0:01:47]} Ke5 {[%emt 0:00:20]} 38. Kf1 {[%emt 0:03:36]} Ke4 {[%emt 0:04:57]} 39. Rc7 {[%emt 0:02:48]} Kd3 {[%emt 0:08:23]} 40. Rxc5 {[%emt 0:01:32]} Kc2 {[%emt 0:05:44]} 41. b6 {[%emt 0:30:29]} axb6 {[%emt 0:23:11]} 42. axb6 {[%emt 0:00:06]} d3 {[%emt 0:01:03]} 43. Rc7 {[%emt 0:04:34]} d2 {[%emt 0:05:34]} 0-1

[Event "4NCL Div 2 2024-25"]
[Site "England"]
[Date "2025.04.05"]
[Round "7.32"]
[White "Alizada, Eldar"]
[Black "Barwick, Carmel"]
[Result "1/2-1/2"]
[Annotator "NA"]
[ECO "E15"]
[WhiteElo "1998"]
[BlackElo "1895"]
[PlyCount "83"]
[EventDate "2024.11.23"]
[EventType "team-tourn"]
[EventCountry "ENG"]
[SourceTitle "playchess.com"]
[Source "ChessBase"]
[SourceQuality "1"]
[TimeControl "40/6000+30:3000+30"]

1. d4 {[%emt 0:10:03]} Nf6 {[%emt 0:10:07]} 2. c4 {[%emt 0:00:10]} e6 {[%emt 0:00:10]} 3. Nf3 {[%emt 0:01:08]} b6 {[%emt 0:00:22]} 4. g3 {[%emt 0:01:00]} Ba6 {[%emt 0:02:04]} 5. Qc2 {[%emt 0:01:00]} Bb4+ {[%emt 0:01:08]} 6. Bd2 {[%emt 0:02:11]} Be7 {[%emt 0:00:38]} 7. Bg2 {[%emt 0:01:40]} c6 {[%emt 0:01:15]} 8. O-O {[%emt 0:02:45]} d5 {[%emt 0:09:44]} 9. Ne5 {[%emt 0:18:36]} Nfd7 {[%emt 0:09:13]} 10. cxd5 {[%emt 0:10:50]} cxd5 {[%emt 0:11:57]} 11. Bf4 {[%emt 0:03:20]} Nxe5 {[%emt 0:03:38]} 12. Bxe5 {[%emt 0:00:22]} O-O {[%emt 0:03:14]} 13. Nc3 {[%emt 0:10:20]} Nd7 {[%emt 0:09:44]} 14. Bf4 {[%emt 0:01:48]} Nf6 {[%emt 0:09:13]} 15. Qa4 {[%emt 0:03:43]} Bc8 {[%emt 0:02:53]} 16. Rfc1 {[%emt 0:02:01]} Bd7 {[%emt 0:02:49]} 17. Qa6 {[%emt 0:01:32]} Nh5 {[%emt 0:06:47]} 18. Bd2 {[%emt 0:02:01]} Bc8 {[%emt 0:06:13]} 19. Qd3 {[%emt 0:02:29]} f5 {[%emt 0:04:31]} 20. Bf3 {[%emt 0:11:02]} Nf6 {[%emt 0:00:47]} 21. Bf4 {[%emt 0:03:04]} Bd7 {[%emt 0:04:36]} 22. Nb5 {[%emt 0:05:10]} Bxb5 {[%emt 0:00:56]} 23. Qxb5 {[%emt 0:00:01]} Ne4 {[%emt 0:04:40]} 24. Bxe4 {[%emt 0:06:44]} fxe4 {[%emt 0:00:40]} 25. Qc6 {[%emt 0:02:30]} Qc8 {[%emt 0:03:18]} 26. Qa4 {[%emt 0:00:02]} Qe8 {[%emt 0:00:30]} 27. Qa6 {[%emt 0:02:08]} Bf6 {[%emt 0:02:53]} 28. Bd6 {[%emt 0:03:15]} Be7 {[%emt 0:00:00]} 29. Bf4 {[%emt 0:01:48]} Bf6 {[%emt 0:00:00]} 30. e3 {[%emt 0:00:21]} e5 {[%emt 0:00:00]} 31. dxe5 {[%emt 0:00:48]} Bxe5 {[%emt 0:00:00]} 32. Bxe5 {[%emt 0:01:20]} Qxe5 {[%emt 0:00:00]} 33. Qb5 {[%emt 0:00:13]} Qf5 {[%emt 0:00:44]} 34. Rc2 {[%emt 0:00:02]} Rac8 {[%emt 0:00:54]} 35. Rac1 {[%emt 0:00:01]} Rxc2 {[%emt 0:00:38]} 36. Rxc2 {[%emt 0:00:01]} h6 {[%emt 0:01:23]} 37. Rd2 {[%emt 0:01:03]} Rd8 {[%emt 0:00:18]} 38. Qa4 {[%emt 0:01:09]} Rd7 {[%emt 0:00:33]} 39. Qc2 {[%emt 0:01:26]} Kf7 {[%emt 0:00:50]} 40. Rd4 {[%emt 0:00:34]} Qe6 {[%emt 0:00:32]} 41. Qd1 {[%emt 0:26:00]} Qf5 {[%emt 0:26:56]} 42. Kg2 {[%emt 0:07:36]} 1/2-1/2

[Event "4NCL Div 2 2024-25"]
[Site "England"]
[Date "2025.04.05"]
[Round "7.33"]
[White "Siva Mahadevan"]
[Black "Gallagher, Daniel GH"]
[Result "1-0"]
[Annotator "ChessBase"]
[ECO "C07"]
[WhiteElo "2369"]
[BlackElo "2203"]
[PlyCount "51"]
[EventDate "2024.11.23"]
[EventType "team-tourn"]
[EventCountry "ENG"]
[SourceTitle "playchess.com"]
[Source "ChessBase"]
[SourceQuality "1"]
[TimeControl "40/6000+30:3000+30"]

1. e4 {[%emt 0:10:08]} e6 {[%emt 0:10:06]} 2. d4 {[%emt 0:00:25]} d5 {[%emt 0:00:04]} 3. Nd2 {[%emt 0:00:16]} c5 {[%emt 0:00:06]} 4. Ngf3 {[%emt 0:02:50]} cxd4 {[%emt 0:01:40]} 5. exd5 {[%emt 0:00:17]} Qxd5 {[%emt 0:00:08]} 6. Bc4 {[%emt 0:00:15]} Qd6 {[%emt 0:00:04]} 7. O-O {[%emt 0:00:34]} Nf6 {[%emt 0:00:05]} 8. Nb3 {[%emt 0:00:30]} Nc6 {[%emt 0:00:08]} 9. Nbxd4 {[%emt 0:00:15]} Nxd4 {[%emt 0:00:06]} 10. Nxd4 {[%emt 0:00:42]} a6 {[%emt 0:00:05]} 11. Re1 {[%emt 0:12:46]} Qc7 {[%emt 0:00:06]} 12. Bd3 {[%emt 0:02:52]} Bd6 {[%emt 0:11:19]} 13. Nf5 {[%emt 0:02:55]} Bxh2+ {[%emt 0:01:42]} 14. Kh1 {[%emt 0:00:10]} O-O {[%emt 0:02:43]} 15. Nxg7 {[%emt 0:00:07]} Kxg7 {[%emt 0:04:46]} 16. g3 {[%emt 0:00:54]} Bxg3 {[%emt 0:15:43]} 17. Qf3 {[%emt 0:12:14]} Be5 {[%emt 0:18:58]} 18. Bg5 {[%emt 0:04:12]} h6 {[%emt 0:20:49]} 19. Rg1 {[%emt 0:14:03]} hxg5 {[%emt 0:00:30]} 20. Rxg5+ {[%emt 0:00:09]} Kh6 {[%emt 0:00:07]} 21. Rag1 {[%emt 0:03:15]} Qc6 {[%emt 0:01:15]} 22. Rg6+ {[%emt 0:00:06]} fxg6 {[%emt 0:01:14]} 23. Rxg6+ {[%emt 0:00:08]} Kh7 {[%emt 0:00:06]} 24. Rg2+ {[%emt 0:00:06]} Kh6 {[%emt 0:02:45]} 25. Qe3+ {[%emt 0:00:06]} Kh5 {[%emt 0:00:23]} 26. Qg5# {[%emt 0:00:06]} 1-0

[Event "4NCL Div 2 2024-25"]
[Site "England"]
[Date "2025.04.05"]
[Round "7.34"]
[White "Hill, Alistair"]
[Black "Bowcott-Terry, Finlay"]
[Result "1-0"]
[Annotator "ChessBase"]
[ECO "E10"]
[WhiteElo "2076"]
[BlackElo "2168"]
[PlyCount "89"]
[EventDate "2024.11.23"]
[EventType "team-tourn"]
[EventCountry "ENG"]
[SourceTitle "playchess.com"]
[Source "ChessBase"]
[SourceQuality "1"]
[TimeControl "40/6000+30:3000+30"]

1. d4 {[%emt 0:22:39]} Nf6 {[%emt 0:10:08]} 2. Nf3 {[%emt 0:01:00]} e6 {[%emt 0:00:14]} 3. c4 {[%emt 0:00:32]} c5 {[%emt 0:00:45]} 4. d5 {[%emt 0:00:22]} b5 {[%emt 0:00:03]} 5. dxe6 {[%emt 0:00:28]} fxe6 {[%emt 0:00:05]} 6. cxb5 {[%emt 0:00:06]} d5 {[%emt 0:00:10]} 7. Nc3 {[%emt 0:00:34]} a6 {[%emt 0:00:52]} 8. e4 {[%emt 0:00:44]} Be7 {[%emt 0:06:49]} 9. Bd3 {[%emt 0:26:17]} c4 {[%emt 0:20:11]} 10. Bc2 {[%emt 0:00:54]} axb5 {[%emt 0:00:06]} 11. e5 {[%emt 0:07:13]} Nfd7 {[%emt 0:00:56]} 12. Nxb5 {[%emt 0:04:12]} Qa5+ {[%emt 0:01:51]} 13. Nc3 {[%emt 0:00:05]} Nc6 {[%emt 0:02:05]} 14. O-O {[%emt 0:00:58]} Ndxe5 {[%emt 0:19:56]} 15. Nxe5 {[%emt 0:06:40]} Nxe5 {[%emt 0:00:03]} 16. Re1 {[%emt 0:09:45]} Nd3 {[%emt 0:02:16]} 17. Bxd3 {[%emt 0:02:38]} cxd3 {[%emt 0:00:07]} 18. Qxd3 {[%emt 0:11:08]} O-O {[%emt 0:00:27]} 19. Be3 {[%emt 0:00:46]} Bd7 {[%emt 0:05:48]} 20. Bd4 {[%emt 0:00:13]} Rf5 {[%emt 0:00:05]} 21. Qxf5 {[%emt 0:02:44]} exf5 {[%emt 0:00:20]} 22. Rxe7 {[%emt 0:00:06]} Qb4 {[%emt 0:05:59]} 23. Rxg7+ {[%emt 0:00:43]} Kf8 {[%emt 0:00:04]} 24. Rd1 {[%emt 0:02:26]} Re8 {[%emt 0:00:16]} 25. h3 {[%emt 0:02:08]} Re7 {[%emt 0:05:03]} 26. a3 {[%emt 0:02:22]} Qd6 {[%emt 0:04:18]} 27. b4 {[%emt 0:00:51]} Qh6 {[%emt 0:02:09]} 28. Rxe7 {[%emt 0:00:21]} Kxe7 {[%emt 0:00:05]} 29. Nxd5+ {[%emt 0:00:56]} Kf7 {[%emt 0:00:05]} 30. Be3 {[%emt 0:02:32]} Qa6 {[%emt 0:00:23]} 31. Nc3 {[%emt 0:00:43]} Be8 {[%emt 0:06:58]} 32. b5 {[%emt 0:00:35]} Qxa3 {[%emt 0:08:52]} 33. Rc1 {[%emt 0:00:06]} Qa5 {[%emt 0:02:17]} 34. b6 {[%emt 0:01:10]} Bc6 {[%emt 0:00:05]} 35. Ne2 {[%emt 0:00:16]} Be4 {[%emt 0:05:00]} 36. Nf4 {[%emt 0:00:42]} h6 {[%emt 0:01:18]} 37. Rc7+ {[%emt 0:00:13]} Ke8 {[%emt 0:00:28]} 38. Rh7 {[%emt 0:00:47]} Qa1+ {[%emt 0:02:10]} 39. Kh2 {[%emt 0:00:04]} Qb2 {[%emt 0:00:33]} 40. Rxh6 {[%emt 0:00:09]} Kd7 {[%emt 0:00:25]} 41. b7 {[%emt 0:52:16]} Qe5 {[%emt 0:23:12]} 42. Rh7+ {[%emt 0:00:00]} Kc6 {[%emt 0:00:26]} 43. g3 {[%emt 0:00:00]} Qa1 {[%emt 0:00:42]} 44. g4 {[%emt 0:00:00]} Qb1 {[%emt 0:02:44]} 45. Ba7 {[%emt 0:00:00]} 1-0